bitfinex-derivatives/quotes_SOLF0:USTF0_20250714
["timestamp","ask_amount","ask_price","bid_price","bid_amount"]
[1752488268967,5.9837,167.1,167.08,5.9842]
[1752488269365,6.02368762,167.11,167.09,3.14830832]
[1752488269568,0.04038762,167.11,167.09,9.13210832]
[1752488270069,0.04038762,167.11,167.09,3.14830832]
[1752488270969,6.02378762,167.11,167.09,3.14830832]
[1752488272272,5.9835,167.1,167.09,3.14830832]
[1752488272470,0.04038762,167.11,167.09,3.14830832]
[1752488272869,6.02378762,167.11,167.09,3.14830832]
[1752488273468,5.9835,167.1,167.09,3.14830832]
[1752488273670,0.04038762,167.11,167.06,5.9848]
[1752488273873,0.04038762,167.11,167.07,3.14830832]
[1752488274075,175.62,167.12,167.07,3.14830832]
[1752488274372,0.04123319,167.11,167.07,9.13270832]
[1752488274563,5.9841,167.09,167.08,0.04379528]
[1752488278069,5.9837,167.1,167.08,0.04379528]
[1752488278374,0.04123319,167.11,167.08,0.04379528]
[1752488280072,5.9839,167.09,167.08,0.04379528]
[1752488282272,3.14830832,167.1,167.01,3.14830832]
[1752488283180,178.76830832,167.12,167.05,3.14830832]
[1752488283479,0.04232408,167.07,167.05,3.14830832]
[1752488283979,0.04232408,167.07,167.06,5.9849]
[1752488284474,0.04232408,167.07,167.06,9.13320832]
[1752488288076,6.02692408,167.07,167.06,3.14830832]
[1752488288282,6.02692408,167.07,167.04,3.19075529]
[1752488289076,0.04232408,167.07,167.04,0.04244697]
[1752488289979,5.9852,167.06,167.04,0.04244697]
[1752488290180,5.9852,167.06,167.04,6.02804697]
[1752488290775,0.04232408,167.07,167.06,5.985]
[1752488290982,0.04232408,167.07,167.06,9.13330832]
[1752488292079,0.04232408,167.07,167.06,3.14830832]
[1752488292283,0.04232408,167.07,167.05,5.9852]
[1752488292681,0.04232408,167.07,167.06,5.985]
[1752488292880,0.04232408,167.07,167.04,3.19075529]
[1752488293074,0.04232408,167.07,167.05,5.985]
[1752488293277,0.04232408,167.07,167.04,3.19075529]
[1752488293785,0.04232408,167.07,167.05,5.9853]
[1752488294683,6.02702408,167.07,167.05,5.9853]
[1752488295390,0.04232408,167.07,167.04,0.04244697]
[1752488295989,5.9853,167.05,167.04,0.04244697]
[1752488296879,0.04232408,167.07,167.04,0.04244697]
[1752488297084,0.04232408,167.07,167.04,3.19075529]
[1752488298189,6.02712408,167.07,167.05,5.9851]
[1752488298387,0.04232408,167.07,167.04,0.04244697]
[1752488298782,0.04232408,167.07,167.04,6.02794697]
[1752488299793,6.02712408,167.07,167.04,6.02794697]
[1752488300695,5.985,167.06,167.04,6.02794697]
[1752488300893,0.04232408,167.07,167.04,0.04244697]
[1752488301494,5.9853,167.05,167.04,0.04244697]
[1752488303088,5.9851,167.06,167.04,0.04244697]
[1752488303285,0.04232408,167.07,167.04,0.04244697]
[1752488303691,5.9852,167.06,167.04,6.02814697]
[1752488305294,5.9852,167.06,167.04,0.04244697]
[1752488306396,5.9852,167.06,167.04,6.02804697]
[1752488308096,0.04232408,167.07,167.05,5.985]
[1752488308795,0.04232408,167.07,167.06,5.985]
[1752488309896,3.14830832,167.15,167.09,5.9838]
[1752488310198,3.14830832,167.15,167.09,9.13210832]
[1752488310496,5.9834,167.11,167.08,9.13240832]
[1752488311798,5.9836,167.1,167.08,3.14830832]
[1752488312092,3.14830832,167.13,167.07,5.9844]
[1752488312795,5.9838,167.1,167.07,5.9844]
[1752488312987,3.14830832,167.14,167.06,3.14830832]
[1752488313402,5.9832,167.11,167.08,5.984]
[1752488313696,5.9832,167.11,167.08,3.14830832]
[1752488313896,6.02250944,167.11,167.08,3.14830832]
[1752488314401,6.02250944,167.11,167.08,9.13220832]
[1752488315397,0.03930944,167.11,167.1,5.9835]
[1752488315598,0.03930944,167.11,167.08,3.14830832]
[1752488316099,0.03930944,167.11,167.09,5.9837]
[1752488316494,6.02260944,167.11,167.09,5.9837]
[1752488317899,6.02260944,167.11,167.08,3.14830832]
[1752488318099,0.03930944,167.11,167.08,3.14830832]
[1752488318598,0.03930944,167.11,167.09,5.9839]
[1752488318799,0.03930944,167.11,167.09,9.13220832]
[1752488319000,6.02270944,167.11,167.09,9.13220832]
[1752488319702,0.03930944,167.11,167.1,5.9835]
[1752488319900,0.03930944,167.11,167.09,3.14830832]
[1752488320302,6.02270944,167.11,167.09,9.13200832]
[1752488320500,0.03930944,167.11,167.09,3.14830832]
[1752488320903,0.03930944,167.11,167.1,5.9835]
[1752488321305,0.03930944,167.11,167.09,3.14830832]
[1752488321506,6.02270944,167.11,167.09,9.13200832]
[1752488322705,0.03930944,167.11,167.09,9.13200832]
[1752488322907,0.03930944,167.11,167.1,5.9835]
[1752488324502,0.03930944,167.11,167.09,5.9838]
[1752488324905,0.03930944,167.11,167.05,5.03428836]
[1752488325106,0.03930944,167.11,167.03,8.18259668]
[1752488325306,0.03930944,167.11,167.03,3.14830832]
[1752488325511,3.14830832,167.1,167.03,3.14830832]
[1752488325712,3.14830832,167.1,167.02,5.03428836]
[1752488326010,5.9852,167.06,167.03,5.9859]
[1752488326814,5.9852,167.06,167.01,8.18259668]
[1752488327110,5.9855,167.05,167.01,3.14830832]
[1752488327413,5.9855,167.05,167.03,5.9858]
[1752488329506,5.9851,167.06,167.04,5.9856]
[1752488330002,5.9851,167.06,167.01,3.14830832]
[1752488330511,5.9851,167.06,167.03,5.9858]
[1752488331013,5.9854,167.05,167.03,5.9858]
[1752488331213,3.14830832,167.08,167.04,5.9855]
[1752488331415,5.9852,167.06,167.04,5.9855]
[1752488331816,3.14830832,167.1,167.03,5.9858]
[1752488333111,5.9853,167.06,167.04,5.9856]
[1752488333314,3.14830832,167.1,167.03,3.14830832]
[1752488333718,3.14830832,167.12,167.03,3.14830832]
[1752488333918,3.14830832,167.12,167.05,3.14830832]
[1752488334621,3.14830832,167.12,167.07,5.9844]
[1752488335220,5.9838,167.1,167.07,5.9844]
[1752488335417,5.9838,167.1,167.08,5.9841]
[1752488335617,5.9838,167.1,167.05,3.14830832]
[1752488335618,5.9834,167.11,167.07,3.14830832]
[1752488335815,3.14830832,167.14,167.07,3.14830832]
[1752488336020,517.08,167.15,167.09,5.9837]
[1752488336221,5.9831,167.12,167.09,5.9837]
[1752488336912,5.9832,167.11,167.09,5.9837]
[1752488337718,5.9829,167.12,167.1,5.9835]
[1752488339023,5.9829,167.12,167.09,9.13210832]
[1752488340318,3.14830832,167.14,167.04,5.03428836]
[1752488340525,3.14830832,167.1,167.02,3.14830832]
[1752488340926,5.985,167.06,167.02,3.14830832]
[1752488341123,3.14830832,167.08,167.0,8.18259668]
[1752488341325,3.14830832,167.08,167.0,5.03428836]
[1752488341629,3.14830832,167.06,166.97,3.14830832]
[1752488342021,5.9863,167.03,167.01,5.9867]
[1752488342427,3.14830832,167.06,167.0,5.9871]
[1752488342620,0.04190756,167.04,167.0,6.02527203]
[1752488342820,0.04190756,167.04,167.0,0.03817203]
[1752488343026,5.9867,167.02,167.0,0.03817203]
[1752488343527,5.9861,167.03,167.0,6.02507203]
[1752488343726,0.04190756,167.04,167.0,0.03817203]
[1752488343930,0.04190756,167.04,167.02,3.14830832]
[1752488344121,0.04190756,167.04,167.03,5.986]
[1752488344325,0.04190756,167.04,167.03,9.13430832]
[1752488346131,0.04190756,167.04,167.03,5.986]
[1752488346930,0.04190756,167.04,167.0,8.22076871]
[1752488347128,0.04190756,167.04,167.0,3.18648035]
[1752488347531,0.04190756,167.04,167.02,5.9862]
[1752488348227,6.02760756,167.04,167.02,5.9862]
[1752488348436,0.04190756,167.04,167.02,5.9862]
[1752488348932,0.04190756,167.04,167.01,9.13490832]
[1752488349630,6.02780756,167.04,167.01,9.13490832]
[1752488350538,5.9861,167.03,167.0,0.03817203]
[1752488351042,5.9861,167.03,167.0,6.02497203]
[1752488351245,5.9861,167.03,167.0,0.03817203]
[1752488351543,0.04190756,167.04,167.01,3.14830832]
[1752488351743,0.04190756,167.04,167.02,5.9862]
[1752488352551,0.04190756,167.04,167.03,5.986]
[1752488352740,0.04190756,167.04,167.03,9.13430832]
[1752488356149,526.92136954,167.15,167.07,5.9843]
[1752488356446,3.14830832,167.13,167.05,3.14830832]
[1752488356645,5.9841,167.09,167.05,3.14830832]
[1752488356848,5.9841,167.09,167.06,5.9847]
[1752488357244,517.08,167.15,167.05,3.14830832]
[1752488357445,6.69306122,167.17,167.12,3.14830832]
[1752488357647,6.69306122,167.19,167.12,3.14830832]
[1752488357948,3.14830832,167.2,167.12,3.14830832]
[1752488358150,3.14830832,167.2,167.14,0.04069459]
[1752488358345,5.982,167.15,167.14,0.04069459]
[1752488358551,3.14830832,167.19,167.14,0.04069459]
[1752488358854,3.14830832,167.21,167.14,3.18900291]
[1752488360755,3.14830832,167.21,167.14,0.04069459]
[1752488361648,517.2,167.24,167.18,3.14830832]
[1752488361849,5.9803,167.19,167.14,3.18900291]
[1752488362053,5.9803,167.19,167.14,3.14830832]
[1752488362253,3.14830832,167.23,167.16,3.14830832]
[1752488362454,3.14830832,167.21,167.15,0.03850193]
[1752488362657,3.14830832,167.19,167.15,0.03850193]
[1752488362849,3.14830832,167.17,167.15,0.03850193]
[1752488363050,693.84119917,167.24,167.15,0.03850193]
[1752488363249,5.9814,167.16,167.15,0.03850193]
[1752488365450,6.01926727,167.17,167.15,0.03850193]
[1752488365646,0.03816727,167.17,167.15,0.03850193]
[1752488367052,0.03816727,167.17,167.15,3.18681025]
[1752488367254,0.03816727,167.17,167.16,5.9814]
[1752488367556,0.03816727,167.17,167.15,3.18681025]
[1752488367754,0.03816727,167.17,167.15,9.16831025]
[1752488368957,0.03816727,167.17,167.15,3.18681025]
[1752488369458,0.03816727,167.17,167.15,0.03850193]
[1752488370054,0.03816727,167.17,167.15,3.18681025]
[1752488370256,0.03816727,167.17,167.15,9.16831025]
[1752488371150,0.03816727,167.17,167.16,5.9814]
[1752488371755,0.03816727,167.17,167.15,9.16841025]
[1752488371960,0.03816727,167.17,167.15,3.18681025]
[1752488372357,0.03816727,167.17,167.15,9.16831025]
[1752488372559,0.03816727,167.17,167.15,0.03850193]
[1752488373661,0.03816727,167.17,167.1,3.14830832]
[1752488373662,3.14830832,167.16,167.08,3.14830832]
[1752488373863,0.03816727,167.17,167.08,3.14830832]
[1752488374164,5.9822,167.14,167.11,5.9829]
[1752488374970,5.9819,167.15,167.12,5.9828]
[1752488375172,3.14830832,167.21,167.12,3.14830832]
[1752488375664,175.38,167.22,167.12,3.14830832]
[1752488375865,178.52830832,167.22,167.14,3.14830832]
[1752488376368,3.14830832,167.21,167.15,5.9815]
[1752488376669,3.14830832,167.21,167.12,3.14830832]
[1752488376866,175.38,167.22,167.06,5.03428836]
[1752488377170,0.04271775,167.18,167.12,3.14830832]
[1752488377668,6.02351775,167.18,167.15,5.9817]
[1752488380067,0.04271775,167.18,167.14,3.14830832]
[1752488381572,5.9812,167.17,167.14,9.13020832]
[1752488382269,5.9812,167.17,167.14,5.9819]
[1752488382470,6.02351775,167.18,167.15,5.9816]
[1752488382861,5.9808,167.18,167.15,5.9816]
[1752488383371,6.02157581,167.18,167.15,5.9816]
[1752488384773,6.02157581,167.18,167.13,3.14830832]
[1752488385771,0.04077581,167.18,167.15,3.14830832]
[1752488385973,0.04077581,167.18,167.17,3.14830832]
[1752488386275,175.38,167.22,167.17,3.14830832]
[1752488387074,5.9802,167.2,167.17,9.12920832]
[1752488388874,6.01858421,167.21,167.17,3.14830832]
[1752488389175,6.01858421,167.21,167.19,3.14830832]
[1752488389176,0.03888421,167.21,167.19,3.14830832]
[1752488389368,0.03888421,167.21,167.19,9.12850832]
[1752488390176,0.03888421,167.21,167.2,5.9799]
[1752488390977,0.03888421,167.21,167.19,9.12840832]
[1752488391379,0.03888421,167.21,167.19,3.14830832]
[1752488391677,0.03888421,167.21,167.19,9.12840832]
[1752488391880,0.03888421,167.21,167.19,3.14830832]
[1752488392077,0.03888421,167.21,167.2,5.9799]
[1752488396178,0.03888421,167.21,167.19,5.9802]
[1752488396383,0.03888421,167.21,167.18,3.14830832]
[1752488396779,0.03888421,167.21,167.2,5.9799]
[1752488399088,0.03888421,167.21,167.16,3.14830832]
[1752488399284,0.03888421,167.21,167.19,0.03819744]
[1752488399487,3.14830832,167.24,167.19,0.03819744]
[1752488399678,5.9803,167.2,167.17,5.981]
[1752488400082,6.01958607,167.2,167.17,5.981]
[1752488400383,6.01958607,167.2,167.17,6.02004838]
[1752488400888,0.03928607,167.2,167.17,3.1873567]
[1752488401081,0.03928607,167.2,167.19,3.14830832]
[1752488401484,0.03928607,167.2,167.19,9.12860832]
[1752488410898,0.03928607,167.2,167.19,5.9803]
[1752488411200,0.03928607,167.2,167.19,9.12860832]
[1752488411496,0.03928607,167.2,167.19,5.9803]
[1752488412292,0.03928607,167.2,167.18,9.12880832]
[1752488412492,0.03928607,167.2,167.17,0.03904838]
[1752488412896,0.03928607,167.2,167.18,5.9804]
[1752488413096,0.03928607,167.2,167.17,0.03904838]
[1752488413500,6.01928607,167.2,167.17,6.01984838]
[1752488414605,6.01928607,167.2,167.18,5.9806]
[1752488414795,6.01928607,167.2,167.17,0.03904838]
[1752488415201,0.03928607,167.2,167.18,5.9806]
[1752488415401,0.03928607,167.2,167.17,0.03904838]
[1752488416001,0.03928607,167.2,167.18,5.9805]
[1752488418603,6.01918607,167.2,167.18,5.9805]
[1752488419102,0.03928607,167.2,167.18,5.9805]
[1752488419604,0.03928607,167.2,167.19,5.9803]
[1752488419804,0.03928607,167.2,167.17,3.1873567]
[1752488420098,0.03928607,167.2,167.18,5.9805]
[1752488421108,6.01928607,167.2,167.18,5.9805]
[1752488421402,6.01928607,167.2,167.17,9.1682567]
[1752488421700,0.03928607,167.2,167.17,0.03904838]
[1752488421901,3.14830832,167.19,167.17,0.03904838]
[1752488422106,3.14830832,167.19,167.09,3.14830832]
[1752488422303,5.9826,167.13,167.07,3.14830832]
[1752488422606,3.14830832,167.14,167.07,3.14830832]
[1752488422906,3.14830832,167.14,167.08,5.9842]
[1752488423306,0.03843668,167.13,167.08,5.9842]
[1752488423508,3.14830832,167.12,167.04,3.14830832]
[1752488424004,5.9837,167.1,167.06,5.9848]
[1752488424207,5.9837,167.1,167.04,3.14830832]
[1752488424808,0.03904656,167.09,167.04,3.14830832]
[1752488425708,0.03904656,167.09,167.08,5.9842]
[1752488426605,180.16,167.23,167.12,3.14830832]
[1752488426807,5.9816,167.16,167.11,3.14830832]
[1752488427411,5.9811,167.17,167.11,3.14830832]
[1752488427913,5.9811,167.17,167.13,5.9824]
[1752488428412,5.9815,167.16,167.13,5.9824]
[1752488428614,5.9815,167.16,167.12,5.9827]
[1752488431115,5.9811,167.17,167.13,5.9823]
[1752488431312,3.14830832,167.19,167.13,5.9823]
[1752488431815,5.9812,167.17,167.14,5.982]
[1752488432109,3.14830832,167.19,167.04,3.14830832]
[1752488432415,3.14830832,167.19,167.12,5.9825]
[1752488432607,3.14830832,167.17,167.1,3.14830832]
[1752488433418,3.14830832,167.17,167.12,5.9826]
[1752488433616,3.14830832,167.17,167.1,3.14830832]
[1752488433815,5.982,167.15,167.11,5.9829]
[1752488434117,3.14830832,167.17,167.1,3.14830832]
[1752488434316,3.14830832,167.13,167.05,3.14830832]
[1752488434815,5.9836,167.1,167.07,5.9844]
[1752488435317,5.9837,167.1,167.01,516.74]
[1752488435512,3.14830832,167.11,167.03,3.14830832]
[1752488435712,3.14830832,167.13,167.05,3.14830832]
[1752488435913,5.9833,167.11,167.07,5.9843]
[1752488436113,3.14830832,167.13,167.07,5.9843]
[1752488436716,5.9835,167.11,167.08,5.9842]
[1752488436913,3.14830832,167.13,167.01,516.74]
[1752488437113,3.14830832,167.13,167.04,3.14830832]
[1752488437314,5.9838,167.1,167.04,3.14830832]
[1752488438519,5.9838,167.1,167.07,5.9844]
[1752488439319,5.984,167.09,167.06,5.9848]
[1752488439715,3.14830832,167.07,167.0,3.14830832]
[1752488440217,5.986,167.04,167.01,5.9867]
[1752488441321,5.9861,167.03,166.94,180.12]
[1752488441520,3.14830832,167.05,166.97,3.14830832]
[1752488441917,3.14830832,167.05,166.99,5.9873]
[1752488442114,3.14830832,167.05,166.97,3.14830832]
[1752488442427,5.9865,167.02,166.99,5.9872]
[1752488442823,3.14830832,167.05,166.97,3.14830832]
[1752488443023,5.9863,167.03,167.0,5.9868]
[1752488443623,5.9864,167.02,167.0,5.9868]
[1752488443823,3.14830832,167.05,167.0,5.9868]
[1752488444124,5.9862,167.03,167.0,5.9868]
[1752488444418,3.14830832,167.05,166.97,3.14830832]
[1752488444723,3.14830832,167.05,166.99,5.9873]
[1752488445225,5.9867,167.02,166.99,5.9873]
[1752488445924,5.9868,167.01,166.98,5.9877]
[1752488446326,3.14830832,167.05,166.97,3.14830832]
[1752488446522,5.9868,167.02,166.99,5.9875]
[1752488447825,5.9862,167.03,166.97,3.14830832]
[1752488448420,3.14830832,167.09,167.01,3.14830832]
[1752488448826,3.14830832,167.09,167.03,5.9859]
[1752488449927,5.9852,167.06,167.03,5.9859]
[1752488450227,3.14830832,167.09,167.03,5.9859]
[1752488450427,5.9852,167.06,167.03,5.9859]
[1752488453134,5.9853,167.05,167.03,5.9859]
[1752488453628,5.9853,167.05,167.02,5.9862]
[1752488453833,5.9853,167.05,167.01,3.14830832]
[1752488454833,5.9853,167.05,167.02,5.9862]
[1752488455433,5.9858,167.04,167.02,5.9862]
[1752488455635,3.14830832,167.09,167.02,5.9862]
[1752488456433,5.9855,167.05,167.02,5.9862]
[1752488456733,5.9855,167.05,167.03,5.986]
[1752488457032,3.14830832,167.1,167.01,3.14830832]
[1752488457233,3.14830832,167.1,167.02,5.9862]
[1752488457531,5.9857,167.05,167.02,5.9862]
[1752488457732,3.14830832,167.1,167.02,5.9862]
[1752488458135,5.9859,167.04,167.01,9.13490832]
[1752488458435,5.9859,167.04,167.01,3.14830832]
[1752488459235,5.9855,167.05,167.02,5.9862]
[1752488459636,3.14830832,167.1,167.02,5.9862]
[1752488459936,5.9857,167.05,167.02,5.9862]
[1752488460232,696.66,167.12,167.01,3.14830832]
[1752488460440,5.9833,167.11,167.09,3.14830832]
[1752488460737,179.64,167.12,167.09,9.13200832]
[1752488460939,179.64,167.12,167.09,3.14830832]
[1752488461333,179.64,167.12,167.1,5.9835]
[1752488461630,179.64,167.12,167.09,3.14830832]
[1752488461834,15.10990832,167.18,167.1,5.9832]
[1752488462035,5.9827,167.13,167.1,5.9832]
[1752488462339,178.74,167.18,167.11,3.14830832]
[1752488462637,181.88830832,167.18,167.09,3.14830832]
[1752488463339,5.9826,167.13,167.1,5.9833]
[1752488465139,5.9829,167.12,167.1,5.9833]
[1752488465439,181.88830832,167.18,167.1,5.9833]
[1752488466841,5.9826,167.13,167.1,5.9833]
[1752488467033,181.88830832,167.18,167.1,5.9833]
[1752488467742,5.9827,167.13,167.1,5.9833]
[1752488468139,181.88830832,167.18,167.09,9.13210832]
[1752488468943,3.14830832,167.16,167.01,11.973]
[1752488469136,3.14830832,167.16,167.07,3.14830832]
[1752488470544,5.9833,167.11,167.08,5.984]
[1752488472145,5.9833,167.11,167.07,3.14830832]
[1752488472146,5.983,167.12,167.09,5.9839]
[1752488472346,5.983,167.12,167.09,9.13220832]
[1752488472548,3.14830832,167.16,167.09,3.14830832]
[1752488472747,181.88830832,167.18,167.1,5.9834]
[1752488472950,178.74,167.18,167.11,3.14830832]
[1752488473246,178.74,167.18,167.11,9.13140832]
[1752488473747,5.9825,167.13,167.11,3.14830832]
[1752488474549,5.9825,167.13,167.11,9.13140832]
[1752488474945,5.9828,167.12,167.11,3.14830832]
[1752488475249,3.14830832,167.13,166.96,3.14830832]
[1752488475449,3.14830832,167.13,167.04,3.14830832]
[1752488475648,5.9843,167.08,167.04,3.14830832]
[1752488476347,3.14830832,167.13,167.06,5.9849]
[1752488476545,5.9841,167.09,167.06,5.9849]
[1752488477453,5.9843,167.08,167.06,5.9849]
[1752488477652,5.9843,167.08,167.05,5.9852]
[1752488478254,3.14830832,167.11,167.04,9.13380832]
[1752488478455,3.14830832,167.11,167.04,3.14830832]
[1752488478955,5.9849,167.07,167.04,9.13380832]
[1752488479257,3.14830832,167.11,167.02,3.14830832]
[1752488479458,5.9855,167.05,167.02,5.9862]
[1752488479850,5.9855,167.05,167.0,3.14830832]
[1752488480556,5.9855,167.05,167.02,5.9861]
[1752488481355,3.14830832,167.09,167.0,3.14830832]
[1752488481649,3.14830832,167.09,167.02,3.14830832]
[1752488481957,5.9852,167.06,167.02,3.14830832]
[1752488482151,3.14830832,167.09,167.02,3.14830832]
[1752488482348,3.14830832,167.09,167.0,3.14830832]
[1752488482653,5.986,167.04,167.0,3.14830832]
[1752488483051,5.9861,167.03,167.01,5.9866]
[1752488483855,5.9861,167.03,167.0,5.9871]
[1752488484055,5.9865,167.02,166.98,3.14830832]
[1752488484554,5.9865,167.02,166.99,5.9873]
[1752488484956,5.9862,167.03,166.98,3.14830832]
[1752488485256,5.9862,167.03,167.0,5.9869]
[1752488485651,5.9862,167.03,167.01,5.9867]
[1752488485857,3.14830832,167.07,166.98,3.14830832]
[1752488486657,3.14830832,167.08,167.0,3.14830832]
[1752488487256,5.9859,167.04,167.01,5.9866]
[1752488487457,5.9859,167.04,167.0,3.14830832]
[1752488487655,3.14830832,167.08,167.0,3.14830832]
[1752488487854,3.14830832,167.08,167.01,5.9865]
[1752488488655,3.14830832,167.08,167.02,5.9864]
[1752488489157,5.9856,167.05,167.02,5.9864]
[1752488489362,3.14830832,167.08,167.0,3.14830832]
[1752488489855,5.9855,167.05,167.0,3.14830832]
[1752488490761,5.9851,167.06,167.03,5.9857]
[1752488491657,5.9854,167.05,167.03,5.9857]
[1752488491861,5.9854,167.05,167.02,5.9863]
[1752488492857,5.9854,167.05,167.03,5.986]
[1752488493358,5.9854,167.05,167.0,3.14830832]
[1752488493557,5.9854,167.05,167.02,5.9862]
[1752488494859,5.9854,167.05,167.03,5.986]
[1752488497761,5.9851,167.06,167.03,5.986]
[1752488498062,180.88830832,167.11,167.02,3.14830832]
[1752488498959,5.9848,167.07,167.02,3.14830832]
[1752488499960,5.9848,167.07,167.04,5.9854]
[1752488500260,5.9852,167.06,167.04,5.9854]
[1752488500459,3.14830832,167.09,167.04,5.9854]
[1752488501362,5.9849,167.07,167.04,5.9854]
[1752488501963,3.14830832,167.09,166.93,517.02]
[1752488502261,3.14830832,167.07,166.98,3.14830832]
[1752488502763,5.9859,167.04,166.98,3.14830832]
[1752488503066,5.9859,167.04,167.0,3.14830832]
[1752488503263,3.14830832,167.07,167.0,3.14830832]
[1752488504062,5.986,167.04,167.01,5.9865]
[1752488505966,177.74,167.11,167.01,5.9865]
[1752488506165,3.14830832,167.08,167.0,9.13530832]
[1752488506563,5.9865,167.02,167.0,9.13530832]
[1752488506866,3.14830832,167.06,166.93,517.02]
[1752488507068,3.14830832,167.06,166.97,3.14830832]
[1752488507269,3.14830832,167.08,166.99,3.14830832]
[1752488507470,5.9864,167.03,167.0,5.987]
[1752488507772,5.9864,167.03,166.99,3.14830832]
[1752488507969,5.9864,167.03,167.0,5.9868]
[1752488509868,5.9858,167.04,167.01,3.14830832]
[1752488510169,176.88,167.09,167.03,5.9858]
[1752488510370,176.88,167.09,167.01,3.14830832]
[1752488512071,5.9857,167.04,167.02,5.9862]
[1752488513073,5.9854,167.05,167.02,5.9862]
[1752488513473,176.88,167.09,167.02,5.9862]
[1752488513672,3.14830832,167.08,167.01,9.13500832]
[1752488514173,5.9859,167.04,167.01,9.13500832]
[1752488514475,3.14830832,167.06,166.99,3.14830832]
[1752488514671,3.14830832,167.06,166.97,3.14830832]
[1752488515073,3.14830832,167.06,166.98,5.9876]
[1752488515275,5.9871,167.01,166.98,5.9876]
[1752488515578,3.14830832,167.06,166.97,9.13640832]
[1752488515771,3.14830832,167.06,166.97,3.14830832]
[1752488516076,176.88,167.09,166.98,5.9876]
[1752488516277,5.9866,167.02,166.97,3.14830832]
[1752488516875,5.9866,167.02,166.99,5.9875]
[1752488518470,5.9866,167.02,167.0,5.9871]
[1752488519177,3.14830832,167.07,166.99,9.13570832]
[1752488519776,5.9866,167.02,166.99,9.13570832]
[1752488520278,3.14830832,167.07,166.99,9.13570832]
[1752488520981,3.14830832,167.05,166.97,3.14830832]
[1752488521174,3.14830832,167.03,166.95,3.14830832]
[1752488521374,3.14830832,167.03,166.97,5.988]
[1752488521677,3.14830832,167.03,166.95,3.14830832]
[1752488521979,5.9871,167.01,166.97,5.988]
[1752488522173,5.9871,167.01,166.95,3.14830832]
[1752488522374,3.14830832,167.05,166.97,3.14830832]
[1752488522579,5.9871,167.01,166.98,5.9876]
[1752488522780,3.14830832,167.05,166.97,3.14830832]
[1752488523080,5.9874,167.0,166.97,9.13630832]
[1752488523280,188.8485,167.09,166.88,15.13110832]
[1752488523478,3.14830832,167.01,166.94,3.14830832]
[1752488523782,3.14830832,167.03,166.96,3.14830832]
[1752488524078,5.9872,167.0,166.97,5.9879]
[1752488524278,3.14830832,167.04,166.96,3.14830832]
[1752488524574,5.9877,166.99,166.96,3.14830832]
[1752488524776,3.14830832,167.04,166.96,3.14830832]
[1752488524976,176.88,167.09,166.97,3.14830832]
[1752488525276,5.9873,167.0,166.97,3.14830832]
[1752488526080,5.9873,167.0,166.98,5.9878]
[1752488526876,5.9877,166.99,166.97,3.14830832]
[1752488527179,3.14830832,167.04,166.95,3.14830832]
[1752488527481,5.9872,167.0,166.97,5.9881]
[1752488528484,5.9869,167.01,166.98,5.9877]
[1752488528882,3.14830832,167.04,166.91,11.9806]
[1752488529084,5.9877,166.99,166.96,5.9883]
[1752488529284,5.9877,166.99,166.95,3.14830832]
[1752488529285,3.14830832,167.04,166.95,3.14830832]
[1752488529484,5.9873,167.0,166.97,5.988]
[1752488530084,5.9875,166.99,166.96,5.9885]
[1752488530386,3.14830832,167.04,166.95,3.14830832]
[1752488530682,5.9873,167.0,166.97,5.9881]
[1752488531881,5.9875,166.99,166.96,5.9885]
[1752488532083,3.14830832,167.0,166.93,3.14830832]
[1752488532588,3.14830832,167.04,166.93,3.14830832]
[1752488532787,3.14830832,167.01,166.93,3.14830832]
[1752488533290,11.9708,167.05,166.93,3.14830832]
[1752488533488,3.14830832,167.03,166.95,3.14830832]
[1752488533688,5.9878,166.99,166.96,5.9884]
[1752488534290,5.9879,166.98,166.96,5.9884]
[1752488535190,5.9876,166.99,166.96,5.9884]
[1752488535891,5.9876,166.99,166.97,5.9882]
[1752488536691,5.9876,166.99,166.96,5.9884]
[1752488538187,5.9879,166.98,166.96,5.9884]
[1752488539595,5.9876,166.99,166.96,5.9884]
[1752488539794,5.9876,166.99,166.97,5.9882]
[1752488540496,5.9868,167.01,166.98,5.9876]
[1752488540694,3.14830832,167.05,166.97,3.14830832]
[1752488541199,5.9868,167.01,166.97,3.14830832]
[1752488541496,3.14830832,167.05,166.97,3.14830832]
[1752488541898,3.14830832,167.07,166.99,3.14830832]